[Event "December 19 Early 2023"]
[Site "https://www.chess.com"]
[Date "2023.12.19"]
[Round "2"]
[White "Liu, Kelsey"]
[Black "Garagulya, Konstantin"]
[Result "1-0"]
[Board "206"]
[TimeControl "180+1"]
[WhiteFideId "30944481"]
[BlackFideId "4128931"]
[WhiteElo "2236"]
[BlackElo "2329"]
[WhiteTeam "USA"]
[BlackTeam "RUS"]
[WhiteClock "0:00:08"]
[BlackClock "0:00:00"]

1. d4 {[%clk 0:03:00]}  Nf6 {[%clk 0:02:44]} 2. c4 {[%clk 0:02:58]}  e6 {[%clk 0:02:44]} 3. Nf3 {[%clk 0:02:55]}  d5 {[%clk 0:02:45]} 4. g3 {[%clk 0:02:53]}  b6 {[%clk 0:02:42]} 5. Bg2 {[%clk 0:02:53]}  Ba6 {[%clk 0:02:42]} 6. cxd5 {[%clk 0:02:51]}  exd5 {[%clk 0:02:43]} 7. O-O {[%clk 0:02:50]}  h6 {[%clk 0:02:41]} 8. h4 {[%clk 0:02:39]}  Bd6 {[%clk 0:02:40]} 9. Ne5 {[%clk 0:02:30]}  O-O {[%clk 0:02:38]} 10. Nc3 {[%clk 0:02:28]}  c6 {[%clk 0:02:38]} 11. Bf4 {[%clk 0:02:28]}  Re8 {[%clk 0:02:35]} 12. Qd2 {[%clk 0:02:23]}  Nh5 {[%clk 0:02:33]} 13. Nxd5 {[%clk 0:02:14]}  Nxf4 {[%clk 0:02:24]} 14. gxf4 {[%clk 0:01:26]}  Bxe5 {[%clk 0:01:58]} 15. dxe5 {[%clk 0:01:27]}  Bb7 {[%clk 0:01:56]} 16. e4 {[%clk 0:01:09]}  cxd5 {[%clk 0:01:57]} 17. exd5 {[%clk 0:01:10]}  Qxh4 {[%clk 0:01:56]} 18. Rfc1 {[%clk 0:01:02]}  Na6 {[%clk 0:01:52]} 19. Rc3 {[%clk 0:00:55]}  Rac8 {[%clk 0:01:35]} 20. Rh3 {[%clk 0:00:54]}  Qd8 {[%clk 0:01:31]} 21. Re1 {[%clk 0:00:37]}  Nc7 {[%clk 0:01:17]} 22. Rg3 {[%clk 0:00:26]}  Bxd5 {[%clk 0:01:08]} 23. Rd3 {[%clk 0:00:19]}  Qh4 {[%clk 0:00:51]} 24. Bxd5 {[%clk 0:00:19]}  Nxd5 {[%clk 0:00:51]} 25. Rxd5 {[%clk 0:00:19]}  Rc4 {[%clk 0:00:52]} 26. Rd4 {[%clk 0:00:17]}  Qg4+ {[%clk 0:00:46]} 27. Kf1 {[%clk 0:00:17]}  Qh3+ {[%clk 0:00:31]} 28. Ke2 {[%clk 0:00:16]}  Qg4+ {[%clk 0:00:26]} 29. Kf1 {[%clk 0:00:16]}  Rec8 {[%clk 0:00:22]} 30. Rxc4 {[%clk 0:00:15]}  Rxc4 {[%clk 0:00:21]} 31. Qd8+ {[%clk 0:00:16]}  Kh7 {[%clk 0:00:21]} 32. Qd3+ {[%clk 0:00:16]}  g6 {[%clk 0:00:17]} 33. Qxc4 {[%clk 0:00:17]}  Qh3+ {[%clk 0:00:18]} 34. Ke2 {[%clk 0:00:17]}  Qg4+ {[%clk 0:00:18]} 35. Kd2 {[%clk 0:00:16]}  Qf5 {[%clk 0:00:18]} 36. Qe4 {[%clk 0:00:15]}  Qd7+ {[%clk 0:00:17]} 37. Ke2 {[%clk 0:00:15]}  Qb5+ {[%clk 0:00:17]} 38. Kf3 {[%clk 0:00:11]}  Qxb2 {[%clk 0:00:17]} 39. Qc4 {[%clk 0:00:10]}  Qa3+ {[%clk 0:00:17]} 40. Kg2 {[%clk 0:00:09]}  Qe7 {[%clk 0:00:16]} 41. e6 {[%clk 0:00:09]}  Qb7+ {[%clk 0:00:15]} 42. f3 {[%clk 0:00:08]}  fxe6 {[%clk 0:00:00]} 43. Qxe6 {[%clk 0:00:08]} 1-0

[Event "December 19 Early 2023"]
[Site "https://www.chess.com"]
[Date "2023.12.19"]
[Round "2"]
[White "Franchini, Gabriele"]
[Black "Azali, Tannaz"]
[Result "0-1"]
[Board "208"]
[TimeControl "180+1"]
[WhiteFideId "806790"]
[BlackFideId "12537721"]
[WhiteElo "2215"]
[BlackElo "1828"]
[WhiteTeam "ITA"]
[BlackTeam "IRI"]
[WhiteClock "0:00:00"]
[BlackClock "0:00:18"]

1. e4 {[%clk 0:03:00]}  c5 {[%clk 0:02:59]} 2. Nc3 {[%clk 0:03:00]}  e6 {[%clk 0:02:59]} 3. f4 {[%clk 0:02:59]}  d5 {[%clk 0:02:58]} 4. Nf3 {[%clk 0:03:00]}  Nf6 {[%clk 0:02:54]} 5. e5 {[%clk 0:02:54]}  Nfd7 {[%clk 0:02:53]} 6. d4 {[%clk 0:02:53]}  Nc6 {[%clk 0:02:53]} 7. Ne2 {[%clk 0:02:53]}  cxd4 {[%clk 0:02:47]} 8. Nexd4 {[%clk 0:02:51]}  Bc5 {[%clk 0:02:47]} 9. Be3 {[%clk 0:02:50]}  Qb6 {[%clk 0:02:47]} 10. Be2 {[%clk 0:01:57]}  Qxb2 {[%clk 0:02:43]} 11. O-O {[%clk 0:01:55]}  Qb6 {[%clk 0:02:31]} 12. Rb1 {[%clk 0:01:39]}  Qd8 {[%clk 0:02:31]} 13. f5 {[%clk 0:01:26]}  Nxd4 {[%clk 0:02:25]} 14. Bxd4 {[%clk 0:01:16]}  Bxd4+ {[%clk 0:02:15]} 15. Qxd4 {[%clk 0:01:17]}  O-O {[%clk 0:02:05]} 16. Bd3 {[%clk 0:01:01]}  exf5 {[%clk 0:01:59]} 17. Nh4 {[%clk 0:00:55]}  Nxe5 {[%clk 0:01:37]} 18. Nxf5 {[%clk 0:00:44]}  Bxf5 {[%clk 0:01:35]} 19. Bxf5 {[%clk 0:00:32]}  Nc6 {[%clk 0:01:32]} 20. Qd3 {[%clk 0:00:22]}  g6 {[%clk 0:01:24]} 21. Bh3 {[%clk 0:00:21]}  Rb8 {[%clk 0:01:18]} 22. g3 {[%clk 0:00:22]}  Qg5 {[%clk 0:01:02]} 23. Bg2 {[%clk 0:00:21]}  Rfd8 {[%clk 0:00:42]} 24. Rb5 {[%clk 0:00:22]}  Ne7 {[%clk 0:00:36]} 25. Re1 {[%clk 0:00:19]}  a6 {[%clk 0:00:34]} 26. Rc5 {[%clk 0:00:16]}  Rd7 {[%clk 0:00:28]} 27. Qb3 {[%clk 0:00:07]}  Rbd8 {[%clk 0:00:23]} 28. h3 {[%clk 0:00:04]}  Qd2 {[%clk 0:00:22]} 29. Rf1 {[%clk 0:00:00]}  Qd4+ {[%clk 0:00:18]} 0-1

[Event "December 19 Early 2023"]
[Site "https://www.chess.com"]
[Date "2023.12.19"]
[Round "2"]
[White "Bach, Matthias"]
[Black "Ljukin, Sergei"]
[Result "1/2-1/2"]
[Board "210"]
[TimeControl "180+1"]
[WhiteFideId "4603168"]
[BlackFideId "14102200"]
[WhiteElo "2130"]
[BlackElo "2319"]
[WhiteTeam "GER"]
[BlackTeam "UKR"]
[WhiteClock "0:00:15"]
[BlackClock "0:00:18"]

1. d4 {[%clk 0:01:47]}  d5 {[%clk 0:02:57]} 2. c4 {[%clk 0:01:47]}  c6 {[%clk 0:02:57]} 3. Nc3 {[%clk 0:01:48]}  Nf6 {[%clk 0:02:57]} 4. Nf3 {[%clk 0:01:48]}  dxc4 {[%clk 0:02:57]} 5. e4 {[%clk 0:01:49]}  b5 {[%clk 0:02:58]} 6. Be2 {[%clk 0:01:49]}  e6 {[%clk 0:02:52]} 7. O-O {[%clk 0:01:48]}  b4 {[%clk 0:02:47]} 8. Na4 {[%clk 0:01:47]}  Nxe4 {[%clk 0:02:47]} 9. Bxc4 {[%clk 0:01:47]}  Nd7 {[%clk 0:02:39]} 10. Re1 {[%clk 0:01:42]}  Nef6 {[%clk 0:02:38]} 11. Qe2 {[%clk 0:01:36]}  Be7 {[%clk 0:02:25]} 12. Ng5 {[%clk 0:01:35]}  Nb6 {[%clk 0:02:21]} 13. Nxb6 {[%clk 0:01:35]}  axb6 {[%clk 0:02:20]} 14. Bf4 {[%clk 0:01:27]}  O-O {[%clk 0:02:14]} 15. Be5 {[%clk 0:01:26]}  Nd5 {[%clk 0:02:08]} 16. Ne4 {[%clk 0:01:20]}  Nf6 {[%clk 0:01:36]} 17. Rad1 {[%clk 0:01:15]}  Bb7 {[%clk 0:01:28]} 18. h4 {[%clk 0:01:07]}  Nxe4 {[%clk 0:01:26]} 19. Qxe4 {[%clk 0:01:07]}  Bxh4 {[%clk 0:01:23]} 20. g3 {[%clk 0:00:59]}  Bf6 {[%clk 0:01:23]} 21. Bd3 {[%clk 0:00:57]}  g6 {[%clk 0:01:22]} 22. Qf4 {[%clk 0:00:57]}  Bxe5 {[%clk 0:01:18]} 23. dxe5 {[%clk 0:00:57]}  Qe7 {[%clk 0:01:18]} 24. Kg2 {[%clk 0:00:49]}  Rad8 {[%clk 0:01:10]} 25. Rh1 {[%clk 0:00:45]}  c5+ {[%clk 0:01:10]} 26. f3 {[%clk 0:00:45]}  f6 {[%clk 0:01:06]} 27. Bxg6 {[%clk 0:00:19]}  hxg6 {[%clk 0:00:59]} 28. Rh6 {[%clk 0:00:20]}  Qg7 {[%clk 0:00:55]} 29. Rdh1 {[%clk 0:00:19]}  Rc8 {[%clk 0:00:14]} 30. Rh8+ {[%clk 0:00:18]}  Qxh8 {[%clk 0:00:14]} 31. Rxh8+ {[%clk 0:00:17]}  Kxh8 {[%clk 0:00:15]} 32. Qh6+ {[%clk 0:00:18]}  Kg8 {[%clk 0:00:15]} 33. Qxg6+ {[%clk 0:00:18]}  Kh8 {[%clk 0:00:16]} 34. Qh6+ {[%clk 0:00:18]}  Kg8 {[%clk 0:00:16]} 35. Qg6+ {[%clk 0:00:17]}  Kh8 {[%clk 0:00:16]} 36. exf6 {[%clk 0:00:15]}  Rc7 {[%clk 0:00:17]} 37. Qh6+ {[%clk 0:00:15]}  Kg8 {[%clk 0:00:17]} 38. Qg6+ {[%clk 0:00:14]}  Kh8 {[%clk 0:00:17]} 39. Qh6+ {[%clk 0:00:14]}  Kg8 {[%clk 0:00:18]} 40. Qg6+ {[%clk 0:00:15]}  Kh8 {[%clk 0:00:18]} 1/2-1/2

[Event "December 19 Early 2023"]
[Site "https://www.chess.com"]
[Date "2023.12.19"]
[Round "2"]
[White "Czerw, Dawid"]
[Black "Palmer, Reegan"]
[Result "1-0"]
[Board "211"]
[TimeControl "180+1"]
[WhiteFideId "1145746"]
[BlackFideId "14322145"]
[WhiteElo "2144"]
[BlackElo "1814"]
[WhiteTeam "POL"]
[BlackTeam "RSA"]
[WhiteClock "0:00:24"]
[BlackClock "0:00:03"]

1. e4 {[%clk 0:03:00]}  c5 {[%clk 0:02:59]} 2. Nf3 {[%clk 0:03:00]}  d6 {[%clk 0:02:59]} 3. d4 {[%clk 0:03:00]}  cxd4 {[%clk 0:03:00]} 4. Nxd4 {[%clk 0:03:01]}  Nf6 {[%clk 0:03:01]} 5. Nc3 {[%clk 0:03:01]}  a6 {[%clk 0:03:01]} 6. h4 {[%clk 0:03:01]}  e5 {[%clk 0:03:00]} 7. Nb3 {[%clk 0:03:00]}  Be7 {[%clk 0:02:59]} 8. Be2 {[%clk 0:03:00]}  h5 {[%clk 0:02:59]} 9. Bg5 {[%clk 0:02:58]}  Be6 {[%clk 0:02:59]} 10. Qd2 {[%clk 0:02:57]}  Nbd7 {[%clk 0:02:58]} 11. O-O-O {[%clk 0:02:57]}  Qc7 {[%clk 0:02:57]} 12. f3 {[%clk 0:02:56]}  b5 {[%clk 0:02:58]} 13. Nd5 {[%clk 0:02:55]}  Bxd5 {[%clk 0:02:23]} 14. exd5 {[%clk 0:02:54]}  Rc8 {[%clk 0:02:23]} 15. Kb1 {[%clk 0:02:45]}  Nb6 {[%clk 0:02:23]} 16. Bxf6 {[%clk 0:02:41]}  Bxf6 {[%clk 0:02:23]} 17. Na5 {[%clk 0:02:40]}  O-O {[%clk 0:02:09]} 18. g4 {[%clk 0:02:38]}  e4 {[%clk 0:01:39]} 19. g5 {[%clk 0:02:32]}  Be5 {[%clk 0:01:32]} 20. f4 {[%clk 0:02:32]}  e3 {[%clk 0:01:32]} 21. Qd3 {[%clk 0:02:19]}  Bxf4 {[%clk 0:01:29]} 22. Bxh5 {[%clk 0:02:09]}  Nxd5 {[%clk 0:01:11]} 23. Qxd5 {[%clk 0:01:57]}  Qxc2+ {[%clk 0:00:10]} 24. Ka1 {[%clk 0:01:55]}  e2 {[%clk 0:00:10]} 25. Rb1 {[%clk 0:01:30]}  Rc5 {[%clk 0:00:05]} 26. Qf3 {[%clk 0:01:20]}  Be5 {[%clk 0:00:03]} 27. Qxe2 {[%clk 0:01:08]}  Qa4 {[%clk 0:00:04]} 28. Nb3 {[%clk 0:01:03]}  Rc4 {[%clk 0:00:04]} 29. Rbf1 {[%clk 0:00:47]}  Rb4 {[%clk 0:00:03]} 30. Qf3 {[%clk 0:00:27]}  Rc4 {[%clk 0:00:02]} 31. Bxf7+ {[%clk 0:00:25]}  Kh8 {[%clk 0:00:03]} 32. Qh5# {[%clk 0:00:24]} 1-0

[Event "December 19 Early 2023"]
[Site "https://www.chess.com"]
[Date "2023.12.19"]
[Round "2"]
[White "Chemin, Justo Reinaldo"]
[Black "Serra Canals, Oriol"]
[Result "1/2-1/2"]
[Board "215"]
[TimeControl "180+1"]
[WhiteFideId "2101580"]
[BlackFideId "22276084"]
[WhiteElo "1940"]
[BlackElo "2108"]
[WhiteTeam "BRA"]
[BlackTeam "ESP"]
[WhiteClock "0:00:08"]
[BlackClock "0:00:14"]

1. d4 {[%clk 0:03:00]}  e6 {[%clk 0:02:54]} 2. c4 {[%clk 0:03:00]}  d5 {[%clk 0:02:53]} 3. Nc3 {[%clk 0:02:58]}  Nf6 {[%clk 0:02:54]} 4. Bg5 {[%clk 0:02:56]}  Be7 {[%clk 0:02:53]} 5. e3 {[%clk 0:02:55]}  h6 {[%clk 0:02:54]} 6. Bh4 {[%clk 0:02:54]}  O-O {[%clk 0:02:54]} 7. Bd3 {[%clk 0:02:53]}  b6 {[%clk 0:02:55]} 8. cxd5 {[%clk 0:02:52]}  Nxd5 {[%clk 0:02:54]} 9. Bxe7 {[%clk 0:02:49]}  Qxe7 {[%clk 0:02:55]} 10. Nge2 {[%clk 0:02:39]}  Nxc3 {[%clk 0:02:48]} 11. bxc3 {[%clk 0:02:38]}  Bb7 {[%clk 0:02:49]} 12. O-O {[%clk 0:02:34]}  Nd7 {[%clk 0:02:48]} 13. e4 {[%clk 0:02:30]}  e5 {[%clk 0:02:45]} 14. Ng3 {[%clk 0:02:17]}  Rfd8 {[%clk 0:02:41]} 15. Nf5 {[%clk 0:02:10]}  Qf8 {[%clk 0:02:41]} 16. Qg4 {[%clk 0:02:08]}  Kh8 {[%clk 0:02:38]} 17. d5 {[%clk 0:01:36]}  Nc5 {[%clk 0:02:34]} 18. Bc2 {[%clk 0:01:33]}  Bc8 {[%clk 0:02:34]} 19. Qf3 {[%clk 0:01:26]}  Bxf5 {[%clk 0:02:32]} 20. Qxf5 {[%clk 0:01:22]}  Qe7 {[%clk 0:02:25]} 21. f4 {[%clk 0:01:21]}  Re8 {[%clk 0:01:15]} 22. fxe5 {[%clk 0:01:20]}  Qxe5 {[%clk 0:01:16]} 23. Qxf7 {[%clk 0:01:18]}  Qxc3 {[%clk 0:01:16]} 24. Rac1 {[%clk 0:01:03]}  Rf8 {[%clk 0:00:37]} 25. Qxf8+ {[%clk 0:01:03]}  Rxf8 {[%clk 0:00:38]} 26. Rxf8+ {[%clk 0:01:03]}  Kh7 {[%clk 0:00:36]} 27. e5+ {[%clk 0:01:00]}  Nd3 {[%clk 0:00:36]} 28. Bxd3+ {[%clk 0:00:50]}  Qxd3 {[%clk 0:00:36]} 29. Rxc7 {[%clk 0:00:41]}  Qd1+ {[%clk 0:00:32]} 30. Kf2 {[%clk 0:00:40]}  Qxd5 {[%clk 0:00:33]} 31. Rff7 {[%clk 0:00:37]}  Qxe5 {[%clk 0:00:28]} 32. Rxa7 {[%clk 0:00:37]}  Qd4+ {[%clk 0:00:27]} 33. Kf3 {[%clk 0:00:36]}  Qd3+ {[%clk 0:00:27]} 34. Kg4 {[%clk 0:00:31]}  Qe2+ {[%clk 0:00:27]} 35. Kh3 {[%clk 0:00:29]}  Qd3+ {[%clk 0:00:25]} 36. g3 {[%clk 0:00:23]}  Qe4 {[%clk 0:00:13]} 37. Rxg7+ {[%clk 0:00:22]}  Kh8 {[%clk 0:00:13]} 38. Rh7+ {[%clk 0:00:13]}  Kg8 {[%clk 0:00:12]} 39. Rag7+ {[%clk 0:00:09]}  Kf8 {[%clk 0:00:12]} 40. Rf7+ {[%clk 0:00:09]}  Kg8 {[%clk 0:00:13]} 41. Rhg7+ {[%clk 0:00:09]}  Kh8 {[%clk 0:00:13]} 42. Rh7+ {[%clk 0:00:09]}  Kg8 {[%clk 0:00:14]} 43. Rfg7+ {[%clk 0:00:09]}  Kf8 {[%clk 0:00:14]} 44. Rf7+ {[%clk 0:00:08]}  Kg8 {[%clk 0:00:14]} 1/2-1/2

[Event "December 19 Early 2023"]
[Site "https://www.chess.com"]
[Date "2023.12.19"]
[Round "2"]
[White "Rakhimgaliyev, Yerlan"]
[Black "Vila Dupla, Aurelio"]
[Result "1-0"]
[Board "218"]
[TimeControl "180+1"]
[WhiteFideId "13705148"]
[BlackFideId "2203383"]
[WhiteElo "2261"]
[BlackElo "2009"]
[WhiteTeam "KAZ"]
[BlackTeam "ESP"]
[WhiteClock "0:02:18"]
[BlackClock "0:00:17"]

1. e4 {[%clk 0:03:00]}  c5 {[%clk 0:02:58]} 2. c3 {[%clk 0:02:58]}  d5 {[%clk 0:02:58]} 3. exd5 {[%clk 0:02:55]}  Qxd5 {[%clk 0:02:58]} 4. d4 {[%clk 0:02:56]}  Nf6 {[%clk 0:02:57]} 5. Nf3 {[%clk 0:02:57]}  Bg4 {[%clk 0:02:57]} 6. Be2 {[%clk 0:02:57]}  e6 {[%clk 0:02:57]} 7. O-O {[%clk 0:02:57]}  Nc6 {[%clk 0:02:57]} 8. h3 {[%clk 0:02:57]}  Bh5 {[%clk 0:02:56]} 9. Na3 {[%clk 0:02:57]}  cxd4 {[%clk 0:02:52]} 10. Nb5 {[%clk 0:02:57]}  Rc8 {[%clk 0:02:52]} 11. Nbxd4 {[%clk 0:02:57]}  Bc5 {[%clk 0:02:36]} 12. Nxc6 {[%clk 0:02:54]}  Qxc6 {[%clk 0:02:33]} 13. Ne5 {[%clk 0:02:46]}  Bxe2 {[%clk 0:02:28]} 14. Qxe2 {[%clk 0:02:47]}  Qb6 {[%clk 0:02:11]} 15. b4 {[%clk 0:02:43]}  Be7 {[%clk 0:01:55]} 16. Be3 {[%clk 0:02:43]}  Qc7 {[%clk 0:01:50]} 17. Qb5+ {[%clk 0:02:42]}  Kf8 {[%clk 0:01:40]} 18. Bxa7 {[%clk 0:02:41]}  Bd6 {[%clk 0:01:30]} 19. Bd4 {[%clk 0:02:40]}  Nd5 {[%clk 0:01:23]} 20. Rac1 {[%clk 0:02:30]}  f6 {[%clk 0:01:17]} 21. Nd7+ {[%clk 0:02:28]}  Kf7 {[%clk 0:01:06]} 22. Nc5 {[%clk 0:02:29]}  Bxc5 {[%clk 0:00:53]} 23. Bxc5 {[%clk 0:02:30]}  b6 {[%clk 0:00:42]} 24. c4 {[%clk 0:02:30]}  Ne7 {[%clk 0:00:30]} 25. Bxb6 {[%clk 0:02:28]}  Qb7 {[%clk 0:00:25]} 26. c5 {[%clk 0:02:28]}  Qc6 {[%clk 0:00:25]} 27. Qxc6 {[%clk 0:02:27]}  Nxc6 {[%clk 0:00:26]} 28. b5 {[%clk 0:02:26]}  Nb4 {[%clk 0:00:25]} 29. a4 {[%clk 0:02:26]}  Nd5 {[%clk 0:00:17]} 30. a5 {[%clk 0:02:18]} 1-0

[Event "December 19 Early 2023"]
[Site "https://www.chess.com"]
[Date "2023.12.19"]
[Round "2"]
[White "Putri, Regita Desyari"]
[Black "Bagrationi, Alexander"]
[Result "0-1"]
[Board "221"]
[TimeControl "180+1"]
[WhiteFideId "7109083"]
[BlackFideId "14104954"]
[WhiteElo "1930"]
[BlackElo "2366"]
[WhiteTeam "INA"]
[BlackTeam "ISR"]
[WhiteClock "0:00:00"]
[BlackClock "0:01:15"]

1. e4 {[%clk 0:02:57]}  Nc6 {[%clk 0:02:58]} 2. Nf3 {[%clk 0:02:56]}  f5 {[%clk 0:02:58]} 3. e5 {[%clk 0:02:53]}  d6 {[%clk 0:02:56]} 4. Bb5 {[%clk 0:02:48]}  dxe5 {[%clk 0:02:52]} 5. Nxe5 {[%clk 0:02:47]}  Qd5 {[%clk 0:02:52]} 6. Bxc6+ {[%clk 0:02:47]}  bxc6 {[%clk 0:02:51]} 7. Nf3 {[%clk 0:02:46]}  Ba6 {[%clk 0:02:45]} 8. d3 {[%clk 0:02:43]}  e5 {[%clk 0:02:41]} 9. Nc3 {[%clk 0:02:42]}  Qd6 {[%clk 0:02:37]} 10. O-O {[%clk 0:02:41]}  O-O-O {[%clk 0:02:36]} 11. Re1 {[%clk 0:02:25]}  Re8 {[%clk 0:02:34]} 12. Be3 {[%clk 0:02:22]}  Nf6 {[%clk 0:02:30]} 13. Rb1 {[%clk 0:02:05]}  Nd5 {[%clk 0:02:22]} 14. Nxd5 {[%clk 0:01:29]}  cxd5 {[%clk 0:02:20]} 15. b4 {[%clk 0:01:28]}  d4 {[%clk 0:02:18]} 16. Bd2 {[%clk 0:01:28]}  Qd5 {[%clk 0:02:16]} 17. a4 {[%clk 0:01:27]}  Bd6 {[%clk 0:02:08]} 18. b5 {[%clk 0:01:12]}  Bb7 {[%clk 0:02:07]} 19. c4 {[%clk 0:01:12]}  dxc3 {[%clk 0:02:02]} 20. Bxc3 {[%clk 0:01:12]}  g5 {[%clk 0:02:01]} 21. Re2 {[%clk 0:01:06]}  g4 {[%clk 0:01:58]} 22. Ne1 {[%clk 0:01:06]}  h5 {[%clk 0:01:54]} 23. Bb4 {[%clk 0:01:03]}  h4 {[%clk 0:01:50]} 24. Bxd6 {[%clk 0:01:01]}  cxd6 {[%clk 0:01:50]} 25. b6 {[%clk 0:00:54]}  a6 {[%clk 0:01:44]} 26. Rc2+ {[%clk 0:00:41]}  Kb8 {[%clk 0:01:43]} 27. Rc7 {[%clk 0:00:42]}  h3 {[%clk 0:01:41]} 28. Qd2 {[%clk 0:00:30]}  hxg2 {[%clk 0:01:38]} 29. Rxb7+ {[%clk 0:00:05]}  Kxb7 {[%clk 0:01:34]} 30. Nxg2 {[%clk 0:00:05]}  Rc8 {[%clk 0:01:24]} 31. Qg5 {[%clk 0:00:05]}  Qf7 {[%clk 0:01:20]} 32. Qe3 {[%clk 0:00:03]}  Rh3 {[%clk 0:01:19]} 33. Qe2 {[%clk 0:00:00]}  Qd5 {[%clk 0:01:15]} 0-1

[Event "December 19 Early 2023"]
[Site "https://www.chess.com"]
[Date "2023.12.19"]
[Round "2"]
[White "Demina, Marya"]
[Black "Eilers, Stefan"]
[Result "1-0"]
[Board "224"]
[TimeControl "180+1"]
[WhiteFideId "4195671"]
[BlackFideId "4609565"]
[WhiteElo "1978"]
[BlackElo "2454"]
[WhiteTeam "RUS"]
[BlackTeam "GER"]
[WhiteClock "0:00:16"]
[BlackClock "0:00:31"]

1. d4 {[%clk 0:02:59]}  d5 {[%clk 0:02:59]} 2. c4 {[%clk 0:02:59]}  e6 {[%clk 0:02:59]} 3. Nc3 {[%clk 0:02:59]}  c5 {[%clk 0:02:58]} 4. cxd5 {[%clk 0:02:59]}  exd5 {[%clk 0:02:59]} 5. Nf3 {[%clk 0:02:59]}  Nc6 {[%clk 0:02:58]} 6. e3 {[%clk 0:03:00]}  Nf6 {[%clk 0:02:57]} 7. Bd3 {[%clk 0:02:59]}  c4 {[%clk 0:02:58]} 8. Bc2 {[%clk 0:02:59]}  a6 {[%clk 0:02:58]} 9. a4 {[%clk 0:02:57]}  Nb4 {[%clk 0:02:58]} 10. Bb1 {[%clk 0:02:55]}  Bg4 {[%clk 0:02:58]} 11. O-O {[%clk 0:02:54]}  Be7 {[%clk 0:02:57]} 12. Re1 {[%clk 0:02:53]}  O-O {[%clk 0:02:56]} 13. e4 {[%clk 0:02:53]}  dxe4 {[%clk 0:02:43]} 14. Nxe4 {[%clk 0:02:53]}  b5 {[%clk 0:02:42]} 15. h3 {[%clk 0:02:41]}  Bh5 {[%clk 0:02:41]} 16. Neg5 {[%clk 0:02:27]}  Bd6 {[%clk 0:02:33]} 17. Bd2 {[%clk 0:02:05]}  Nbd5 {[%clk 0:02:18]} 18. g4 {[%clk 0:01:57]}  Bg6 {[%clk 0:02:17]} 19. Ne5 {[%clk 0:01:52]}  Re8 {[%clk 0:01:51]} 20. Bxg6 {[%clk 0:01:45]}  fxg6 {[%clk 0:01:50]} 21. axb5 {[%clk 0:01:08]}  axb5 {[%clk 0:01:50]} 22. Rxa8 {[%clk 0:01:06]}  Qxa8 {[%clk 0:01:50]} 23. Qc2 {[%clk 0:00:53]}  Qc8 {[%clk 0:01:34]} 24. f4 {[%clk 0:00:29]}  Bxe5 {[%clk 0:01:28]} 25. fxe5 {[%clk 0:00:25]}  Nxg4 {[%clk 0:01:28]} 26. hxg4 {[%clk 0:00:21]}  Qxg4+ {[%clk 0:01:28]} 27. Kh1 {[%clk 0:00:21]}  Rf8 {[%clk 0:01:14]} 28. Qe4 {[%clk 0:00:18]}  Qh5+ {[%clk 0:00:50]} 29. Kg2 {[%clk 0:00:18]}  Ne7 {[%clk 0:00:50]} 30. Rh1 {[%clk 0:00:18]}  Nf5 {[%clk 0:00:32]} 31. Rxh5 {[%clk 0:00:17]}  gxh5 {[%clk 0:00:33]} 32. Qd5+ {[%clk 0:00:16]}  Kh8 {[%clk 0:00:31]} 33. Nf7+ {[%clk 0:00:16]} 1-0

[Event "December 19 Early 2023"]
[Site "https://www.chess.com"]
[Date "2023.12.19"]
[Round "2"]
[White "Khegay, Yuliya"]
[Black "Lacasa Diaz, Josep Anton"]
[Result "0-1"]
[Board "229"]
[TimeControl "180+1"]
[WhiteFideId "14205394"]
[BlackFideId "2203375"]
[WhiteElo "1748"]
[BlackElo "2338"]
[WhiteTeam "UZB"]
[BlackTeam "ESP"]
[WhiteClock "0:00:00"]
[BlackClock "0:01:47"]

1. e4 {[%clk 0:02:59]}  c5 {[%clk 0:02:56]} 2. Nf3 {[%clk 0:02:58]}  d6 {[%clk 0:02:56]} 3. Bb5+ {[%clk 0:02:58]}  Nd7 {[%clk 0:02:55]} 4. d4 {[%clk 0:02:56]}  cxd4 {[%clk 0:02:54]} 5. Qxd4 {[%clk 0:02:56]}  a6 {[%clk 0:02:55]} 6. Bxd7+ {[%clk 0:02:55]}  Qxd7 {[%clk 0:02:56]} 7. O-O {[%clk 0:02:52]}  e5 {[%clk 0:02:54]} 8. Qd3 {[%clk 0:02:13]}  Qc6 {[%clk 0:02:54]} 9. Nc3 {[%clk 0:02:03]}  Be6 {[%clk 0:02:46]} 10. Nd5 {[%clk 0:01:27]}  Rc8 {[%clk 0:02:38]} 11. c3 {[%clk 0:01:22]}  Bxd5 {[%clk 0:02:34]} 12. exd5 {[%clk 0:01:10]}  Qc4 {[%clk 0:02:28]} 13. Qxc4 {[%clk 0:00:52]}  Rxc4 {[%clk 0:02:29]} 14. Rd1 {[%clk 0:00:32]}  Be7 {[%clk 0:02:18]} 15. Nd2 {[%clk 0:00:16]}  Rc8 {[%clk 0:02:17]} 16. a4 {[%clk 0:00:11]}  f5 {[%clk 0:02:12]} 17. f3 {[%clk 0:00:07]}  Nf6 {[%clk 0:02:08]} 18. c4 {[%clk 0:00:04]}  a5 {[%clk 0:02:02]} 19. b3 {[%clk 0:00:02]}  Bd8 {[%clk 0:01:59]} 20. Ba3 {[%clk 0:00:01]}  Bb6+ {[%clk 0:01:56]} 21. Kf1 {[%clk 0:00:00]}  Kd7 {[%clk 0:01:47]} 0-1